bitfinex-derivatives/quotes_ETHF0:USTF0_20250902
["timestamp","ask_amount","ask_price","bid_price","bid_amount"]
[1756847517788,3.4406,4321.9,4321.8,0.7633]
[1756847518287,3.6638,4321.9,4321.8,0.7633]
[1756847521494,3.9829,4321.9,4321.8,0.7633]
[1756847523486,3.89518,4321.9,4321.3,41.1403]
[1756847523690,0.7751,4321.4,4321.3,41.1403]
[1756847523886,0.7751,4321.4,4321.3,0.554]
[1756847526993,0.7751,4321.4,4320.6,2.41213461]
[1756847526994,0.456,4321.0,4320.6,2.41213461]
[1756847527291,3.43921,4321.4,4320.6,2.41213461]
[1756847527292,0.7751,4320.7,4320.6,0.5763]
[1756847527597,0.7751,4320.2,4320.1,2.07183461]
[1756847527892,0.3191,4320.1,4319.9,0.3403]
[1756847528085,0.7751,4320.0,4319.9,0.554]
[1756847534597,0.7751,4320.0,4319.9,0.758]
[1756847536899,0.7369,4320.4,4320.3,0.4098]
[1756847537100,0.7369,4320.4,4320.3,0.719]
[1756847538199,0.7369,4320.4,4320.3,0.515]
[1756847539196,0.7369,4320.4,4320.3,0.719]
[1756847540195,0.4256,4320.4,4320.3,0.719]
[1756847544007,0.2056,4320.4,4320.3,0.719]
[1756847544201,30.552,4322.5,4321.2,0.719]
[1756847544202,3.4134,4321.3,4321.2,0.719]
[1756847544600,3.6334,4321.3,4321.2,0.719]
[1756847544800,3.9447,4321.3,4321.2,0.719]
[1756847545402,3.9447,4321.3,4321.2,0.515]
[1756847545603,3.6334,4321.3,4321.2,0.719]
[1756847549004,3.9447,4321.3,4321.2,0.719]
[1756847550404,3.9447,4321.3,4321.2,0.3092]
[1756847550709,3.6334,4321.3,4321.2,0.719]
[1756847551414,3.9447,4321.3,4321.2,0.719]
[1756847552713,3.9447,4321.3,4321.2,0.515]
[1756847555211,3.9447,4321.3,4321.2,0.719]
[1756847556103,3.4134,4321.3,4321.2,0.719]
[1756847556716,3.9447,4321.3,4321.2,0.719]
[1756847557104,0.3113,4321.2,4320.5,40.8]
[1756847557308,0.7369,4320.6,4320.5,41.1092]
[1756847557510,0.4256,4320.6,4320.5,0.719]
[1756847557712,0.4256,4320.6,4320.1,2.07183461]
[1756847557713,0.3113,4320.5,4320.1,2.07183461]
[1756847557911,0.7369,4320.3,4319.9,0.236]
[1756847558115,0.7369,4320.3,4320.0,0.3092]
[1756847559216,3.2078,4320.5,4319.9,0.236]
[1756847559523,0.4256,4320.0,4319.9,0.751]
[1756847559820,0.4256,4320.0,4319.9,0.955]
[1756847560122,0.7369,4319.8,4319.7,0.3092]
[1756847560411,0.7369,4319.8,4319.7,0.5452]
[1756847560617,0.7369,4319.8,4319.7,0.751]
[1756847561017,0.7369,4319.8,4319.7,0.955]
[1756847561224,0.4256,4319.8,4319.7,0.955]
[1756847561524,0.4256,4319.8,4319.7,0.719]
[1756847561818,0.4256,4319.8,4319.7,0.955]
[1756847575821,3.5224,4321.0,4319.8,0.313]
[1756847576030,3.9359,4321.0,4320.9,0.7341]
[1756847576415,3.9359,4321.0,4320.9,0.5215]
[1756847578528,3.9359,4321.0,4320.9,0.313]
[1756847579424,3.9359,4321.0,4320.5,0.313]
[1756847579724,0.4135,4320.2,4320.1,0.7341]
[1756847579920,0.7281,4320.2,4320.1,0.5215]
[1756847580126,0.7281,4320.2,4320.1,0.549]
[1756847580328,0.7281,4320.2,4320.1,0.7575]
[1756847580926,0.3146,4320.4,4320.1,0.236]
[1756847581228,0.7281,4320.2,4320.1,0.549]
[1756847581828,3.2078,4320.5,4320.1,0.9701]
[1756847582029,3.2078,4321.0,4320.5,0.1294]
[1756847582219,3.4209,4321.0,4320.9,0.7341]
[1756847582618,3.6213,4321.0,4320.9,0.7341]
[1756847582821,3.9359,4321.0,4320.9,0.7341]
[1756847583831,3.6213,4321.0,4320.9,0.7341]
[1756847585331,3.9308,4321.0,4320.9,0.7341]
[1756847586528,3.6213,4321.0,4320.9,0.7341]
[1756847586831,3.9308,4321.0,4320.9,0.7341]
[1756847587421,0.723,4320.4,4320.1,2.07183461]
[1756847587623,0.4135,4320.2,4320.1,0.313]
[1756847587823,0.723,4320.2,4320.1,0.313]
[1756847588231,0.723,4320.2,4320.1,0.5215]
[1756847596832,0.723,4320.2,4320.1,0.7303]
[1756847600530,0.4135,4320.2,4320.1,0.7303]
[1756847603638,0.2131,4320.2,4320.1,0.7303]
[1756847606731,3.2078,4320.8,4320.7,0.4257]
[1756847606931,3.2078,4320.8,4320.7,0.7468]
[1756847607630,3.2078,4321.3,4320.7,0.7468]
[1756847607833,3.2078,4321.3,4321.2,0.7468]
[1756847609839,3.4244,4321.3,4321.2,0.7468]
[1756847610733,0.4158,4320.7,4319.5,0.1294]
[1756847610938,0.7226,4320.4,4320.3,0.3211]
[1756847611646,0.4158,4320.4,4320.3,0.7468]
[1756847612040,0.7226,4320.4,4320.3,0.7468]
[1756847621649,0.4158,4320.4,4320.3,0.7468]
[1756847622144,0.7113,4320.4,4320.3,0.7468]
[1756847623350,0.4158,4320.4,4320.3,0.7468]
[1756847625348,3.2078,4320.7,4320.6,0.7131]
[1756847626445,3.4242,4320.7,4320.6,0.7131]
[1756847627252,3.2078,4320.7,4320.6,0.7131]
[1756847628954,3.4242,4320.7,4320.6,0.7131]
[1756847629256,3.9291,4320.7,4320.6,0.7131]
[1756847629958,3.6336,4320.7,4320.6,0.7131]
[1756847632154,3.9291,4320.7,4320.6,0.7131]
[1756847636045,3.9291,4320.7,4320.6,0.3022]
[1756847638157,3.9291,4320.7,4320.6,0.5144]
[1756847640360,3.5033,4321.7,4321.1,0.4109]
[1756847640555,0.4258,4321.3,4321.2,0.2122]
[1756847640759,0.7213,4321.3,4321.2,0.5144]
[1756847641259,0.4258,4321.3,4321.2,0.7131]
[1756847642357,0.4258,4321.3,4320.9,0.236]
[1756847642662,0.7213,4321.2,4321.1,0.5144]
[1756847642955,0.4258,4321.2,4321.1,0.7131]
[1756847647362,0.2164,4321.2,4321.1,0.7131]
[1756847647663,3.5025,4322.2,4321.2,0.3022]
[1756847647962,3.9283,4322.2,4322.1,0.5144]
[1756847648268,0.4258,4322.2,4322.1,0.7131]
[1756847650663,3.2078,4322.7,4322.2,0.3022]
[1756847650864,0.4258,4322.3,4322.2,0.7131]
[1756847651071,0.7205,4322.3,4322.2,0.7131]
[1756847651661,0.4258,4322.3,4322.2,0.7131]
[1756847655669,0.2164,4322.3,4322.2,0.7131]
[1756847658370,3.5024,4322.8,4322.2,0.7131]
[1756847658673,3.9176,4322.8,4322.7,0.2062]
[1756847658876,3.9176,4322.8,4322.7,0.5115]
[1756847663870,3.623,4322.8,4322.7,0.7051]
[1756847664676,3.4192,4322.8,4322.7,0.7051]
[1756847664971,3.623,4322.8,4322.7,0.7051]
[1756847665165,3.9176,4322.8,4322.7,0.7051]
[1756847665366,0.2946,4323.3,4322.7,0.3998]
[1756847665565,1.24601775,4324.8,4322.7,0.3998]
[1756847665566,0.2946,4323.8,4323.3,0.7051]
[1756847665778,0.2946,4324.3,4323.4,0.3053]
[1756847665969,0.2946,4324.3,4323.6,0.3053]
[1756847666272,3.2078,4324.4,4323.7,0.7051]
[1756847666273,0.2114,4323.8,4323.7,0.7051]
[1756847670572,0.2946,4324.2,4323.7,0.7051]
[1756847670573,0.2946,4324.2,4323.8,0.3053]
[1756847670777,0.7098,4324.2,4324.1,0.5115]
[1756847671178,0.7098,4324.2,4324.1,0.3053]
[1756847672978,0.7098,4324.2,4324.1,0.5115]
[1756847677583,0.7098,4324.2,4323.5,0.1173]
[1756847677781,0.7098,4324.2,4323.6,0.3053]
[1756847678482,0.7098,4324.2,4324.1,0.5115]
[1756847687593,0.4152,4324.2,4324.1,0.7067]
[1756847687889,0.2114,4324.2,4324.1,0.7067]
[1756847688492,0.4262,4324.2,4324.1,0.7067]
[1756847689397,0.2005,4324.3,4324.2,0.7028]
[1756847690078,0.4153,4324.3,4324.2,0.7028]
[1756847690582,0.2005,4324.3,4324.2,0.7028]
[1756847691282,3.2078,4324.9,4324.2,0.3998]
[1756847691482,3.9171,4324.9,4324.8,0.5076]
[1756847691682,3.9171,4324.9,4324.8,0.7028]
[1756847692690,3.6231,4324.9,4324.8,0.7028]
[1756847694589,3.9171,4324.9,4324.8,0.7028]
[1756847695394,3.6231,4324.9,4324.8,0.7028]
[1756847696290,3.2078,4324.9,4324.8,0.7028]
[1756847696788,3.4083,4324.9,4324.8,0.7028]
[1756847701697,3.6231,4324.9,4324.8,0.7028]
[1756847701895,3.9171,4324.9,4324.8,0.7028]
[1756847703899,3.6231,4324.9,4324.8,0.7028]
[1756847704099,3.9171,4324.9,4324.8,0.7028]
[1756847704991,3.9171,4324.9,4324.8,0.5076]
[1756847705196,3.9171,4324.9,4324.8,0.303]
[1756847705391,3.9171,4324.9,4324.8,0.5076]
[1756847706396,3.9171,4324.9,4324.8,0.303]
[1756847707798,3.9171,4324.9,4324.2,0.235]
[1756847708096,3.6231,4324.4,4324.1,0.303]
[1756847708298,0.4153,4324.2,4323.9,0.303]
[1756847708494,0.4153,4324.2,4324.1,0.7028]
[1756847708800,3.2078,4324.4,4324.1,0.3998]
[1756847708990,3.2078,4324.4,4324.0,0.1183]
[1756847708991,3.2078,4324.4,4324.3,0.7028]
[1756847709189,3.9168,4324.4,4324.3,0.303]
[1756847709399,3.9168,4324.4,4323.9,1.6479384]
[1756847709594,0.4153,4324.0,4323.9,0.2046]
[1756847709905,0.709,4323.7,4323.3,1.9509384]
[1756847710201,0.709,4323.3,4323.2,1.8525384]
[1756847710389,0.4153,4323.3,4323.2,2.0477384]
[1756847710595,0.2005,4323.3,4323.2,2.3507384]
[1756847711098,3.2078,4323.5,4323.2,2.3507384]
[1756847711403,3.4074,4323.5,4323.4,0.6884]
[1756847711995,3.2078,4323.5,4323.4,0.6884]
[1756847713202,3.4074,4323.5,4323.4,0.6884]
[1756847713496,3.2078,4323.5,4323.4,0.6884]
[1756847713906,3.2078,4323.5,4323.4,0.9234]
[1756847715699,3.4074,4323.5,4323.4,0.9234]
[1756847717001,0.1996,4323.5,4323.4,0.9234]
[1756847717399,0.6904,4323.5,4323.4,0.6884]
[1756847717606,0.6904,4323.5,4323.4,0.4936]
[1756847717902,0.3963,4323.5,4323.4,0.6884]
[1756847718304,0.1996,4323.5,4323.4,0.6884]
[1756847718503,3.2078,4324.0,4323.4,0.6884]
[1756847718697,3.2078,4324.0,4323.5,0.2991]
[1756847718902,3.6041,4324.0,4323.9,0.1945]
[1756847719104,3.6041,4324.0,4323.4,0.235]
[1756847719317,0.3963,4323.5,4323.4,0.5341]
[1756847719502,0.6904,4323.5,4323.4,0.7286]
[1756847719702,0.3963,4323.5,4323.4,0.9234]
[1756847719906,0.1996,4323.5,4323.4,0.9234]
[1756847720993,0.6904,4323.9,4323.8,0.1945]
[1756847721199,0.6904,4323.9,4323.8,0.4936]
[1756847721798,0.6904,4323.9,4323.8,0.2991]
[1756847722202,0.6904,4323.9,4323.5,0.2991]
[1756847723109,0.6904,4323.9,4323.1,0.2991]
[1756847723301,0.6904,4323.9,4323.2,0.235]
[1756847723700,0.6904,4323.9,4323.3,0.2991]
[1756847728008,0.6911,4323.4,4323.3,0.4936]
[1756847729318,0.3963,4323.4,4323.3,0.6884]
[1756847729610,3.2078,4323.5,4323.4,0.6884]
[1756847730516,3.2078,4324.1,4323.4,0.6884]
[1756847730714,3.4074,4324.1,4324.0,0.3893]
[1756847731014,3.8989,4324.1,4324.0,0.6884]
[1756847731313,3.8989,4324.1,4324.0,0.2991]
[1756847733313,3.8989,4324.1,4324.0,0.6884]
[1756847733314,3.6041,4324.1,4324.0,0.6884]
[1756847734611,3.4074,4324.1,4324.0,0.8088]
[1756847734816,3.2078,4324.7,4324.0,4.8088]
[1756847735115,3.2078,4324.7,4324.6,0.6884]
[1756847735608,3.4074,4325.2,4325.1,0.3893]
[1756847735814,3.4074,4325.2,4325.1,0.6884]
[1756847737317,3.4074,4325.2,4325.1,0.87546671]
[1756847737521,3.2078,4325.2,4325.1,0.87546671]
[1756847738615,3.2078,4325.2,4325.1,1.11046671]
[1756847739419,0.2948,4325.8,4325.2,0.2991]
[1756847739805,0.1996,4325.3,4325.2,0.6884]
[1756847742518,0.2948,4325.8,4325.3,0.3119]
[1756847742718,0.2048,4325.4,4325.3,0.7173]
[1756847745921,0.4106,4325.4,4325.3,0.7173]
[1756847746108,0.4106,4325.4,4325.3,0.9523]
[1756847746313,0.7044,4325.4,4325.3,0.9523]
[1756847746715,0.7044,4325.4,4325.3,0.7173]
[1756847747517,0.4106,4325.4,4325.3,0.7173]
[1756847748217,0.2048,4325.4,4325.3,0.7173]
[1756847749013,0.4106,4325.4,4325.3,0.7173]
[1756847750225,0.7044,4325.4,4325.3,0.7173]
[1756847750721,3.9122,4325.4,4324.7,0.235]
[1756847750926,3.9122,4325.4,4324.2,4.8557384]
[1756847751229,0.4106,4324.8,4324.7,0.7173]
[1756847751521,0.7044,4324.8,4324.7,0.7173]
[1756847751927,0.7044,4324.8,4324.7,0.5124]
[1756847753127,0.7044,4324.8,4324.7,0.3119]
[1756847753426,0.7044,4324.8,4324.1,0.5124]
[1756847753427,0.7044,4324.2,4324.1,0.5124]
[1756847754926,0.7044,4324.2,4324.1,0.7173]
[1756847755624,0.4106,4324.2,4323.3,0.3119]
[1756847755829,0.2938,4324.1,4323.4,0.235]
[1756847756020,3.2078,4324.3,4323.4,0.6404]
[1756847756021,0.2048,4323.5,4323.4,0.6404]
[1756847756528,0.2048,4323.5,4323.4,0.9523]
[1756847758020,0.2048,4323.5,4323.4,0.7173]
[1756847758228,0.4106,4323.5,4323.4,0.9523]
[1756847759929,3.9122,4323.5,4323.4,0.7173]
[1756847760129,3.9122,4323.5,4323.4,0.5124]
[1756847760427,3.6184,4323.5,4323.4,0.7173]
[1756847760726,3.4428,4324.2,4323.5,0.4404]
[1756847760934,0.2048,4323.7,4323.6,0.7173]
[1756847761336,0.4106,4323.7,4323.6,0.7173]
[1756847763335,0.7044,4323.7,4323.6,0.5124]
[1756847763539,0.2048,4323.0,4322.9,0.9523]
[1756847764733,0.2048,4323.0,4322.9,0.7173]
[1756847764932,0.4106,4323.0,4322.5,0.3119]
[1756847765127,0.7044,4322.6,4322.5,0.6404]
[1756847765329,0.7044,4322.6,4322.5,0.4054]
[1756847765528,0.2048,4322.6,4322.5,0.4054]
[1756847765830,0.2048,4322.6,4322.5,0.7173]
[1756847768241,0.4106,4322.6,4322.5,0.7173]
[1756847772445,0.7054,4322.6,4322.5,0.7173]
[1756847773542,0.4106,4322.6,4322.5,0.7173]
[1756847775544,3.2078,4322.7,4322.6,0.7308]
[1756847775749,3.2078,4323.2,4322.7,0.3171]
[1756847775952,3.2078,4323.2,4323.1,0.4137]
[1756847776249,3.4209,4323.2,4323.1,0.7308]
[1756847776849,3.6307,4323.2,4323.1,0.7308]
[1756847777840,3.2078,4323.2,4323.1,0.7308]
[1756847782449,3.2078,4323.9,4323.2,0.3171]
[1756847782642,3.9255,4323.9,4323.8,0.5217]
[1756847785950,0.7177,4323.2,4323.1,0.5217]
[1756847787355,0.7177,4323.2,4322.6,0.3171]
[1756847788455,0.2948,4323.1,4322.6,0.5521]
[1756847788747,0.4229,4322.7,4322.6,0.9658]
[1756847788951,0.4229,4322.7,4322.6,0.7308]
[1756847789145,0.7177,4322.7,4322.6,0.5217]
[1756847789546,0.2948,4323.2,4322.6,0.4137]
[1756847789858,3.9255,4323.3,4323.2,0.5217]
[1756847790257,3.9255,4323.3,4323.2,0.7308]
[1756847790258,3.6307,4323.3,4323.2,0.7308]
[1756847790554,3.2078,4323.8,4323.3,0.3171]
[1756847790752,3.4209,4323.8,4323.7,0.7308]
[1756847791258,3.9255,4323.8,4323.7,0.7308]
[1756847791459,3.9255,4323.8,4323.7,0.5217]
[1756847793059,3.9255,4323.8,4323.7,0.3171]
[1756847795960,3.9255,4323.8,4323.1,0.5217]
[1756847795961,0.4229,4323.2,4323.1,0.5217]
[1756847796159,0.4229,4323.2,4323.1,0.7308]
[1756847802258,0.4229,4323.2,4322.7,0.3015]
[1756847802562,0.4091,4322.8,4322.7,0.4391]
[1756847802758,0.703,4322.8,4322.7,0.5056]
[1756847803264,0.703,4322.8,4322.7,0.3015]
[1756847803458,0.703,4322.8,4322.7,0.5056]
[1756847804359,0.703,4322.8,4322.7,0.3015]
[1756847804565,3.9108,4322.8,4322.7,0.3015]
[1756847804759,3.9108,4322.8,4322.0,3.3363]
[1756847805065,0.4091,4322.4,4322.3,0.7064]
[1756847805361,0.703,4322.4,4322.3,0.7064]
[1756847806159,0.703,4322.4,4322.3,0.9414]
[1756847806765,0.4091,4322.4,4322.3,0.9414]
[1756847809960,0.2142,4322.4,4322.3,0.9414]
[1756847812661,3.2078,4322.8,4322.3,0.9414]
[1756847812862,3.9108,4322.8,4322.7,0.2041]
[1756847813159,3.9108,4322.8,4322.7,0.5056]
[1756847814361,3.9108,4322.8,4322.1,0.3015]
[1756847814362,0.2939,4322.6,4322.1,0.3015]
[1756847814564,0.703,4322.3,4322.2,0.5365]
[1756847814768,3.9108,4322.3,4322.2,0.5365]
[1756847815161,3.9108,4322.3,4322.2,0.7406]
[1756847815557,3.9108,4322.3,4322.2,0.5056]
[1756847816870,3.6169,4322.3,4322.2,0.7064]
[1756847819970,3.9108,4322.3,4322.2,0.7064]
[1756847820166,3.422,4322.3,4322.2,0.7064]
[1756847820368,3.2078,4322.3,4322.2,0.7064]
[1756847820565,0.0846,4324.0,4322.2,0.7064]
[1756847820566,3.2078,4323.4,4322.7,0.4049]
[1756847820769,3.2078,4323.4,4323.3,0.7064]
[1756847820965,3.6169,4323.4,4323.3,0.9414]
[1756847821266,3.9108,4323.4,4323.3,0.7406]
[1756847822072,3.9108,4323.4,4323.3,0.5056]
[1756847823063,3.422,4323.4,4323.3,0.7064]
[1756847823269,3.2078,4323.4,4323.3,0.7064]
[1756847823861,3.6169,4323.4,4323.3,0.7064]
[1756847824169,3.9108,4323.4,4323.3,0.7064]
[1756847825462,3.9108,4323.4,4323.3,0.5056]
[1756847825864,3.2078,4323.4,4323.3,0.7064]
[1756847827270,3.422,4323.4,4323.3,0.7064]
[1756847832174,3.2078,4323.4,4323.3,0.7064]
[1756847832676,3.4218,4323.4,4323.3,0.7064]
[1756847833063,3.2078,4323.4,4322.8,0.293]
[1756847833274,3.2078,4323.4,4322.8,0.6379]
[1756847833567,3.4218,4323.4,4323.3,0.6959]
[1756847833772,3.6296,4323.4,4323.3,0.6959]
[1756847833970,3.924,4323.4,4323.3,0.293]
[1756847834973,0.7162,4323.4,4323.3,0.293]
[1756847835375,3.924,4323.4,4323.3,0.293]
[1756847836379,0.7162,4323.4,4323.3,0.293]
[1756847836573,0.4218,4323.2,4323.0,0.235]
[1756847836778,0.7162,4323.2,4323.1,0.4936]
[1756847844681,0.2944,4322.9,4322.7,1.64235316]
[1756847844872,0.4218,4322.4,4322.3,2.17035316]
[1756847845078,0.7162,4322.4,4322.3,1.93535316]
[1756847845378,0.7162,4322.4,4322.3,2.17035316]
[1756847845578,0.7162,4322.4,4322.3,2.37095316]
[1756847846484,0.7162,4322.4,4322.3,1.64235316]
[1756847846676,3.924,4322.4,4322.3,1.64235316]
[1756847846983,0.214,4322.1,4322.0,30.833]
[1756847847174,0.214,4322.1,4322.0,31.068]
[1756847847577,3.2078,4322.4,4322.3,0.6959]
[1756847847876,3.2078,4322.9,4322.4,0.293]
[1756847848080,3.6296,4322.9,4322.8,0.6959]
[1756847848884,3.924,4322.9,4322.8,0.4936]
[1756847850078,3.924,4322.9,4322.8,0.293]
[1756847850278,3.924,4322.9,4322.6,0.528]
[1756847850574,0.4218,4322.7,4322.6,0.528]
[1756847850874,0.7162,4322.7,4322.6,0.528]
[1756847851277,0.4218,4322.7,4322.2,0.293]
[1756847851474,0.4218,4322.4,4322.3,0.235]
[1756847851683,0.7162,4322.4,4322.3,0.235]
[1756847852185,0.7162,4322.4,4322.3,0.528]
[1756847852384,0.7162,4322.4,4322.3,0.7286]
[1756847852885,0.4218,4322.4,4322.3,0.9309]
[1756847853088,3.5022,4322.9,4322.4,0.293]
[1756847853279,3.924,4322.9,4322.8,0.293]
[1756847853484,0.2944,4322.8,4322.6,0.235]
[1756847853686,0.7162,4322.7,4322.6,0.235]
[1756847854183,0.7162,4322.7,4322.1,1.64235316]
[1756847854387,0.7162,4322.7,4322.3,0.293]
[1756847854586,0.7162,4322.7,4322.2,0.235]
[1756847854888,0.4218,4322.4,4322.3,0.2006]
[1756847855088,0.7162,4322.4,4322.3,0.4936]
[1756847855290,0.4218,4322.4,4322.3,0.6959]
[1756847855981,0.214,4322.4,4322.3,0.6959]
[1756847859083,0.7162,4322.4,4322.3,0.9309]
[1756847860290,0.7162,4322.4,4322.3,0.6959]
[1756847860491,0.7162,4322.4,4322.3,0.9309]
[1756847861186,0.4218,4322.4,4322.3,0.9309]
[1756847861588,0.7174,4322.4,4322.3,0.9309]
[1756847861988,0.7174,4322.4,4322.3,0.6959]
[1756847862384,0.7174,4322.4,4322.3,0.9309]
[1756847862989,7.2078,4322.4,4321.4,0.65085316]
[1756847863187,7.2078,4322.4,4320.8,2.07183461]
[1756847863188,3.2078,4321.5,4320.8,0.2048]
[1756847863488,3.2078,4321.0,4320.8,0.2048]
[1756847863691,3.2078,4321.0,4320.5,0.2048]
[1756847864092,3.2078,4321.0,4320.5,0.3264]
[1756847865090,3.2078,4321.0,4320.6,0.2913]
[1756847865391,3.2078,4321.0,4320.7,0.2048]
[1756847865591,3.2078,4321.0,4320.6,0.2913]
[1756847865894,3.2078,4321.0,4320.7,0.4961]
[1756847866193,3.2078,4321.0,4320.6,0.2913]
[1756847866386,3.2078,4321.0,4320.6,0.2048]
[1756847866586,3.2078,4321.0,4320.5,0.1216]
[1756847866800,3.2078,4321.0,4320.7,0.2913]
[1756847866992,3.2078,4321.0,4320.8,0.2913]
[1756847867293,3.2078,4321.0,4320.9,0.4961]
[1756847869092,3.2078,4321.0,4320.9,0.2913]
[1756847869897,3.2078,4321.0,4320.3,0.2913]
[1756847870091,3.2078,4321.0,4320.3,0.2048]
[1756847870291,3.2078,4321.0,4320.4,0.4961]
[1756847870491,3.2078,4321.0,4320.4,0.2048]
[1756847870691,3.2078,4321.0,4320.2,0.2913]
[1756847870891,3.2078,4321.0,4320.3,0.4961]
[1756847871099,3.2078,4320.5,4320.4,0.4961]
[1756847871593,3.2078,4320.5,4320.4,0.2913]
[1756847871792,3.2078,4320.5,4320.4,0.4961]
[1756847871995,3.2078,4320.5,4320.4,0.6943]
[1756847873290,3.2078,4320.5,4320.4,0.4961]
[1756847873899,3.2078,4320.5,4319.8,0.235]
[1756847874097,0.235,4320.9,4319.9,0.4961]
[1756847874098,3.2078,4320.0,4319.9,0.4961]
[1756847874798,3.2078,4320.0,4319.9,0.6943]
[1756847876701,3.2078,4320.5,4320.0,0.4129]
[1756847876999,3.2078,4320.5,4320.1,0.2048]
[1756847877193,3.2078,4320.5,4320.4,0.2048]
[1756847877389,3.2078,4320.5,4320.4,0.4961]
[1756847877801,3.2078,4320.5,4320.4,0.2913]
[1756847879001,3.2078,4321.0,4320.5,0.1216]
[1756847879200,3.2078,4321.0,4320.9,0.6943]
[1756847885301,3.2078,4321.0,4320.1,0.2913]
[1756847885503,3.4428,4321.0,4320.1,0.4961]
[1756847885697,3.4428,4321.0,4320.2,0.2048]
[1756847885903,3.4428,4321.0,4320.3,0.2913]
[1756847886104,3.4428,4321.0,4320.3,0.4961]
[1756847886304,3.4428,4321.0,4320.3,0.2048]
[1756847886504,3.4428,4321.0,4320.4,0.4961]
[1756847888111,0.23144,4320.9,4320.0,0.4961]
[1756847888313,3.2078,4320.5,4319.6,0.2913]
[1756847888511,0.235,4320.4,4319.7,0.2913]
[1756847888811,0.235,4320.4,4319.8,0.2913]
[1756847889007,0.235,4320.4,4319.1,0.18465815]
[1756847889008,0.235,4320.4,4319.9,0.2913]
[1756847889210,0.235,4320.4,4319.2,0.235]
[1756847889422,0.235,4320.4,4319.6,0.4961]
[1756847889722,0.235,4320.4,4319.8,0.2913]
[1756847889922,0.235,4320.4,4319.9,0.2913]
[1756847890116,0.235,4320.4,4319.6,0.2913]
[1756847890322,3.2078,4319.9,4319.6,0.2913]
[1756847890517,3.2078,4319.9,4319.7,0.2913]
[1756847890723,3.2078,4319.9,4319.8,0.2913]
[1756847890922,3.2078,4319.9,4319.8,0.4961]
[1756847895728,3.2078,4319.9,4319.8,0.2913]
[1756847898627,3.4428,4319.9,4318.4,32.61283461]
[1756847898825,3.2078,4319.4,4319.3,0.5138]
[1756847899127,3.2078,4319.4,4319.3,0.7144]
[1756847899728,3.2078,4319.4,4319.3,0.3114]
[1756847900125,3.2078,4319.4,4319.3,0.5138]
[1756847900324,3.2078,4319.4,4318.6,40.8]
[1756847900518,3.2078,4319.4,4318.4,30.541]
[1756847900519,3.2078,4319.4,4318.8,0.2024]
[1756847900721,3.2078,4319.4,4319.3,0.7144]
[1756847903334,3.2078,4319.4,4319.3,0.3114]
[1756847903528,3.2078,4319.4,4319.3,0.5138]
[1756847903731,3.2078,4319.4,4319.3,0.7144]
[1756847903927,3.2078,4319.4,4318.6,0.3114]
[1756847904425,3.2078,4319.4,4318.7,0.235]
[1756847904733,3.4428,4319.4,4318.8,0.5138]
[1756847904932,3.2078,4318.9,4318.8,0.5138]
[1756847905129,3.2078,4318.9,4318.8,0.3114]
[1756847908327,3.2078,4318.9,4318.5,0.3114]
[1756847908635,3.2078,4318.9,4318.2,0.235]
[1756847908929,3.2078,4318.9,4317.5,0.1227]
[1756847908930,0.235,4318.8,4318.0,0.324]
[1756847909139,0.235,4318.8,4318.2,0.3114]
[1756847909330,0.235,4318.8,4318.2,0.5138]
[1756847909533,0.235,4318.8,4318.4,0.3114]
[1756847909726,0.235,4318.8,4318.0,0.1216]
[1756847909727,0.235,4318.8,4318.3,0.3114]
[1756847909922,3.2078,4318.4,4318.3,0.3114]
[1756847911323,3.2078,4318.4,4318.3,0.5138]
[1756847913629,3.2078,4318.4,4318.3,0.3114]
[1756847914031,3.2078,4318.4,4317.5,0.1227]
[1756847914336,3.2078,4317.9,4317.8,0.5138]
[1756847915037,3.2078,4317.9,4317.8,0.3114]
[1756847915630,3.2078,4317.9,4317.0,30.87087133]
[1756847915930,3.2078,4317.9,4317.2,0.2024]
[1756847916131,3.4428,4317.9,4317.3,0.3114]
[1756847916332,3.2078,4317.4,4317.3,0.3114]
[1756847916529,3.2078,4317.4,4317.0,30.9217]
[1756847916530,3.2078,4317.4,4316.6,3.4102]
[1756847916726,3.2078,4317.4,4316.9,0.3114]
[1756847916933,3.2078,4317.4,4316.8,0.2024]
[1756847917132,3.2078,4317.4,4316.8,0.3114]
[1756847917328,3.2078,4317.4,4316.8,0.2024]
[1756847917529,3.2078,4317.4,4317.0,0.3114]
[1756847917733,0.235,4317.3,4316.5,0.2024]
[1756847918032,3.2078,4316.7,4316.6,0.5138]
[1756847919133,3.2078,4316.7,4316.1,0.5138]
[1756847919633,0.235,4316.6,4315.6,0.5464]
[1756847919835,3.2078,4316.2,4315.5,0.3251]
[1756847920136,3.2078,4316.2,4315.6,0.5138]
[1756847920435,0.235,4316.1,4315.2,3.2078]
[1756847920634,0.235,4316.1,4315.4,0.5138]
[1756847920829,0.235,4316.1,4315.5,0.5138]
[1756847921235,3.2078,4315.7,4315.6,0.3058]
[1756847921434,3.4428,4315.7,4315.6,0.3058]
[1756847922233,3.4428,4315.7,4315.1,0.3058]
[1756847922443,3.2078,4315.2,4315.1,0.3058]
[1756847922739,3.2078,4315.2,4314.3,0.3058]
[1756847922943,3.2078,4314.7,4314.0,0.1227]